[Event "Titled Tuesday Blitz June 13 Late 2023"]
[White "Schmakel, Sam"]
[Black "liwadas82"]
[WhiteFideId "2039311"]
[WhiteElo "2356"]
[BlackElo "2441"]
[Result "1/2-1/2"]
[Round "1"]
[TimeControl "180+2"]
[Date "2023.06.13"]
[WhiteClock "0:00:58"]
[BlackClock "0:00:05"]
[Board "66"]

1. d4 {[%clk 0:02:58]}  Nf6 {[%clk 0:02:57]} 2. Bf4 {[%clk 0:02:58]}  e6 {[%clk 0:02:58]} 3. Nd2 {[%clk 0:02:56]}  d5 {[%clk 0:02:55]} 4. e3 {[%clk 0:02:56]}  Bd6 {[%clk 0:02:54]} 5. Bg3 {[%clk 0:02:56]}  Bxg3 {[%clk 0:02:49]} 6. hxg3 {[%clk 0:02:55]}  b6 {[%clk 0:02:43]} 7. Ngf3 {[%clk 0:02:55]}  Ba6 {[%clk 0:02:38]} 8. Bxa6 {[%clk 0:02:54]}  Nxa6 {[%clk 0:02:39]} 9. c3 {[%clk 0:02:54]}  Nb8 {[%clk 0:02:37]} 10. Qe2 {[%clk 0:02:53]}  Nbd7 {[%clk 0:02:34]} 11. e4 {[%clk 0:02:53]}  dxe4 {[%clk 0:02:22]} 12. Nxe4 {[%clk 0:02:54]}  h6 {[%clk 0:02:12]} 13. O-O-O {[%clk 0:02:52]}  Qe7 {[%clk 0:01:47]} 14. Ne5 {[%clk 0:02:41]}  Nxe5 {[%clk 0:01:39]} 15. dxe5 {[%clk 0:02:42]}  Nxe4 {[%clk 0:01:37]} 16. Qxe4 {[%clk 0:02:42]}  O-O {[%clk 0:01:37]} 17. f4 {[%clk 0:02:37]}  c5 {[%clk 0:01:20]} 18. g4 {[%clk 0:02:34]}  Rad8 {[%clk 0:00:46]} 19. Rxd8 {[%clk 0:02:33]}  Rxd8 {[%clk 0:00:46]} 20. g5 {[%clk 0:02:34]}  Qd7 {[%clk 0:00:41]} 21. gxh6 {[%clk 0:02:32]}  g6 {[%clk 0:00:40]} 22. g4 {[%clk 0:02:00]}  Qd2+ {[%clk 0:00:38]} 23. Kb1 {[%clk 0:02:00]}  Kh7 {[%clk 0:00:36]} 24. f5 {[%clk 0:01:47]}  Qd3+ {[%clk 0:00:28]} 25. Qxd3 {[%clk 0:01:47]}  Rxd3 {[%clk 0:00:29]} 26. f6 {[%clk 0:01:16]}  Re3 {[%clk 0:00:15]} 27. Rd1 {[%clk 0:01:15]}  Rxe5 {[%clk 0:00:14]} 28. Rd7 {[%clk 0:01:15]}  Kxh6 {[%clk 0:00:15]} 29. Rxa7 {[%clk 0:01:11]}  Kg5 {[%clk 0:00:13]} 30. Rxf7 {[%clk 0:01:11]}  Kxg4 {[%clk 0:00:13]} 31. Rb7 {[%clk 0:01:11]}  Rf5 {[%clk 0:00:13]} 32. f7 {[%clk 0:01:11]}  Kf3 {[%clk 0:00:11]} 33. Rxb6 {[%clk 0:01:11]}  g5 {[%clk 0:00:11]} 34. Rxe6 {[%clk 0:01:11]}  g4 {[%clk 0:00:11]} 35. Rg6 {[%clk 0:01:11]}  g3 {[%clk 0:00:11]} 36. a4 {[%clk 0:01:11]}  Rxf7 {[%clk 0:00:11]} 37. Ka2 {[%clk 0:01:10]}  g2 {[%clk 0:00:11]} 38. b4 {[%clk 0:01:11]}  cxb4 {[%clk 0:00:11]} 39. cxb4 {[%clk 0:01:12]}  Rf4 {[%clk 0:00:11]} 40. Rxg2 {[%clk 0:01:06]}  Kxg2 {[%clk 0:00:12]} 41. Kb3 {[%clk 0:01:06]}  Kf3 {[%clk 0:00:12]} 42. a5 {[%clk 0:01:06]}  Ke4 {[%clk 0:00:12]} 43. Kc4 {[%clk 0:01:07]}  Ke5+ {[%clk 0:00:11]} 44. Kc5 {[%clk 0:01:07]}  Rf1 {[%clk 0:00:12]} 45. a6 {[%clk 0:01:06]}  Rc1+ {[%clk 0:00:12]} 46. Kb6 {[%clk 0:01:07]}  Kd6 {[%clk 0:00:12]} 47. b5 {[%clk 0:01:04]}  Ra1 {[%clk 0:00:11]} 48. Kb7 {[%clk 0:01:04]}  Kd7 {[%clk 0:00:10]} 49. b6 {[%clk 0:01:04]}  Kd6 {[%clk 0:00:08]} 50. a7 {[%clk 0:01:01]}  Kc5 {[%clk 0:00:09]} 51. Kc7 {[%clk 0:01:01]}  Ra2 {[%clk 0:00:07]} 52. Kb7 {[%clk 0:00:55]}  Ra1 {[%clk 0:00:06]} 53. Kc7 {[%clk 0:00:55]}  Ra2 {[%clk 0:00:06]} 54. Kb8 {[%clk 0:00:56]}  Kxb6 {[%clk 0:00:05]} 55. a8=Q {[%clk 0:00:57]}  Rxa8+ {[%clk 0:00:05]} 56. Kxa8 {[%clk 0:00:58]} 1/2-1/2


[Site "https://www.chess.com"]

[Event "Titled Tuesday Blitz June 13 Late 2023"]
[White "Kaplan, Avi Harrison"]
[Black "Hambleton, Aman"]
[WhiteFideId "30934559"]
[BlackFideId "2606577"]
[WhiteElo "1983"]
[BlackElo "2511"]
[Result "0-1"]
[Round "1"]
[TimeControl "180+2"]
[Date "2023.06.13"]
[WhiteClock "0:00:02"]
[BlackClock "0:00:04"]
[Board "67"]

1. Nf3 {[%clk 0:02:58]}  d5 {[%clk 0:02:59]} 2. c4 {[%clk 0:02:57]}  c6 {[%clk 0:02:57]} 3. b3 {[%clk 0:02:55]}  Bf5 {[%clk 0:02:55]} 4. Bb2 {[%clk 0:02:55]}  e6 {[%clk 0:02:55]} 5. g3 {[%clk 0:02:54]}  Nf6 {[%clk 0:02:55]} 6. Bg2 {[%clk 0:02:54]}  h6 {[%clk 0:02:55]} 7. O-O {[%clk 0:02:54]}  Be7 {[%clk 0:02:56]} 8. d3 {[%clk 0:02:55]}  O-O {[%clk 0:02:56]} 9. Nbd2 {[%clk 0:02:56]}  Bh7 {[%clk 0:02:57]} 10. Rc1 {[%clk 0:02:55]}  a5 {[%clk 0:02:57]} 11. a3 {[%clk 0:02:55]}  Bd6 {[%clk 0:02:56]} 12. Rc2 {[%clk 0:02:54]}  Nbd7 {[%clk 0:02:56]} 13. Qa1 {[%clk 0:02:54]}  Re8 {[%clk 0:02:53]} 14. Rfc1 {[%clk 0:02:53]}  e5 {[%clk 0:02:49]} 15. cxd5 {[%clk 0:02:53]}  cxd5 {[%clk 0:02:50]} 16. h3 {[%clk 0:02:53]}  e4 {[%clk 0:02:49]} 17. Ne1 {[%clk 0:02:14]}  e3 {[%clk 0:01:24]} 18. fxe3 {[%clk 0:02:12]}  Bxg3 {[%clk 0:01:14]} 19. Nf1 {[%clk 0:02:06]}  Bd6 {[%clk 0:01:14]} 20. Bd4 {[%clk 0:01:44]}  Qe7 {[%clk 0:01:10]} 21. a4 {[%clk 0:01:31]}  Ba3 {[%clk 0:00:57]} 22. Bb2 {[%clk 0:01:26]}  Bb4 {[%clk 0:00:52]} 23. Nf3 {[%clk 0:01:24]}  Nh5 {[%clk 0:00:28]} 24. Rc7 {[%clk 0:01:10]}  Bd6 {[%clk 0:00:24]} 25. Rxb7 {[%clk 0:01:00]}  Ng3 {[%clk 0:00:24]} 26. Nxg3 {[%clk 0:00:34]}  Bxg3 {[%clk 0:00:24]} 27. Bd4 {[%clk 0:00:34]}  Qe6 {[%clk 0:00:17]} 28. Qb2 {[%clk 0:00:23]}  Nf6 {[%clk 0:00:17]} 29. Rb6 {[%clk 0:00:20]}  Qe7 {[%clk 0:00:10]} 30. Bxf6 {[%clk 0:00:20]}  Qxe3+ {[%clk 0:00:07]} 31. Kh1 {[%clk 0:00:20]}  gxf6 {[%clk 0:00:07]} 32. Rxf6 {[%clk 0:00:19]}  Rac8 {[%clk 0:00:04]} 33. Rxc8 {[%clk 0:00:13]}  Rxc8 {[%clk 0:00:05]} 34. Ng1 {[%clk 0:00:13]}  Rc1 {[%clk 0:00:04]} 35. Rf1 {[%clk 0:00:12]}  Rxf1 {[%clk 0:00:02]} 36. Bxf1 {[%clk 0:00:12]}  Be5 {[%clk 0:00:02]} 37. Qc2 {[%clk 0:00:06]}  Bf5 {[%clk 0:00:02]} 38. Nf3 {[%clk 0:00:05]}  Qf2 {[%clk 0:00:02]} 39. Bg2 {[%clk 0:00:05]}  Bf4 {[%clk 0:00:02]} 40. Qd1 {[%clk 0:00:03]}  Qg3 {[%clk 0:00:02]} 41. Qf1 {[%clk 0:00:04]}  Be4 {[%clk 0:00:02]} 42. dxe4 {[%clk 0:00:04]}  dxe4 {[%clk 0:00:02]} 43. Qg1 {[%clk 0:00:04]}  Kf8 {[%clk 0:00:02]} 44. Ne1 {[%clk 0:00:02]}  Be3 {[%clk 0:00:03]} 45. Qf1 {[%clk 0:00:02]}  Bf4 {[%clk 0:00:03]} 46. Qg1 {[%clk 0:00:03]}  Be3 {[%clk 0:00:02]} 47. Qf1 {[%clk 0:00:01]}  Bd2 {[%clk 0:00:03]} 48. Nf3 {[%clk 0:00:01]}  Bf4 {[%clk 0:00:02]} 49. Qg1 {[%clk 0:00:01]}  exf3 {[%clk 0:00:03]} 50. Bxf3 {[%clk 0:00:02]}  Qxh3+ {[%clk 0:00:03]} 51. Qh2 {[%clk 0:00:02]}  Qxh2# {[%clk 0:00:04]} 0-1


[Site "https://www.chess.com"]

[Event "Titled Tuesday Blitz June 13 Late 2023"]
[White "QuiesPrecatio"]
[Black "Vakhlamov, Igor L."]
[BlackFideId "24126748"]
[WhiteElo "2440"]
[BlackElo "2407"]
[Result "0-1"]
[Round "1"]
[TimeControl "180+2"]
[Date "2023.06.13"]
[WhiteClock "0:00:33"]
[BlackClock "0:01:03"]
[Board "69"]

1. d4 {[%clk 0:02:59]}  d5 {[%clk 0:02:59]} 2. c4 {[%clk 0:02:59]}  e6 {[%clk 0:03:00]} 3. Nc3 {[%clk 0:02:59]}  c5 {[%clk 0:03:00]} 4. cxd5 {[%clk 0:02:59]}  cxd4 {[%clk 0:03:00]} 5. Qa4+ {[%clk 0:02:59]}  Bd7 {[%clk 0:02:57]} 6. Qxd4 {[%clk 0:02:59]}  exd5 {[%clk 0:02:56]} 7. Qxd5 {[%clk 0:03:00]}  Nf6 {[%clk 0:02:56]} 8. Qd1 {[%clk 0:03:00]}  Bc5 {[%clk 0:02:56]} 9. e3 {[%clk 0:02:58]}  O-O {[%clk 0:02:54]} 10. Nf3 {[%clk 0:02:58]}  Qe7 {[%clk 0:02:54]} 11. Be2 {[%clk 0:02:57]}  Rd8 {[%clk 0:02:55]} 12. Qc2 {[%clk 0:02:51]}  Nc6 {[%clk 0:02:53]} 13. a3 {[%clk 0:02:51]}  Rac8 {[%clk 0:02:52]} 14. O-O {[%clk 0:02:49]}  Ne5 {[%clk 0:02:52]} 15. Bd2 {[%clk 0:02:36]}  Bc6 {[%clk 0:02:52]} 16. Rfd1 {[%clk 0:02:23]}  Nxf3+ {[%clk 0:02:41]} 17. Bxf3 {[%clk 0:02:23]}  Bxf3 {[%clk 0:02:41]} 18. gxf3 {[%clk 0:02:24]}  Qe5 {[%clk 0:02:41]} 19. f4 {[%clk 0:02:23]}  Qh5 {[%clk 0:02:39]} 20. Kg2 {[%clk 0:01:08]}  Qg4+ {[%clk 0:02:15]} 21. Kf1 {[%clk 0:01:08]}  Qf3 {[%clk 0:02:07]} 22. Be1 {[%clk 0:01:03]}  Ng4 {[%clk 0:02:07]} 23. Rxd8+ {[%clk 0:00:51]}  Rxd8 {[%clk 0:02:08]} 24. Qe4 {[%clk 0:00:52]}  Nxe3+ {[%clk 0:01:43]} 25. Kg1 {[%clk 0:00:52]}  Qg4+ {[%clk 0:01:26]} 26. Kh1 {[%clk 0:00:51]}  Qh3 {[%clk 0:01:11]} 27. Bd2 {[%clk 0:00:42]}  Ng4 {[%clk 0:01:04]} 28. Qg2 {[%clk 0:00:33]}  Nxf2+ {[%clk 0:01:03]} 0-1


[Site "https://www.chess.com"]

[Event "Titled Tuesday Blitz June 13 Late 2023"]
[White "Kubatko, Ivan"]
[Black "Najer, Evgeniy"]
[WhiteFideId "24111473"]
[BlackFideId "4118987"]
[WhiteElo "2285"]
[BlackElo "2545"]
[Result "0-1"]
[Round "1"]
[TimeControl "180+2"]
[Date "2023.06.13"]
[WhiteClock "0:00:05"]
[BlackClock "0:00:03"]
[Board "73"]

1. e4 {[%clk 0:03:00]}  c6 {[%clk 0:00:33]} 2. d4 {[%clk 0:03:00]}  d5 {[%clk 0:00:33]} 3. exd5 {[%clk 0:03:01]}  cxd5 {[%clk 0:00:33]} 4. c4 {[%clk 0:03:01]}  Nf6 {[%clk 0:00:32]} 5. Nc3 {[%clk 0:03:02]}  Nc6 {[%clk 0:00:33]} 6. Bg5 {[%clk 0:03:01]}  Be6 {[%clk 0:00:32]} 7. a3 {[%clk 0:02:54]}  g6 {[%clk 0:00:27]} 8. Bxf6 {[%clk 0:02:52]}  exf6 {[%clk 0:00:26]} 9. b4 {[%clk 0:02:36]}  Bg7 {[%clk 0:00:24]} 10. c5 {[%clk 0:02:34]}  O-O {[%clk 0:00:23]} 11. Nf3 {[%clk 0:02:34]}  Bg4 {[%clk 0:00:18]} 12. Be2 {[%clk 0:02:34]}  f5 {[%clk 0:00:19]} 13. O-O {[%clk 0:02:22]}  Re8 {[%clk 0:00:19]} 14. Ra2 {[%clk 0:01:55]}  Qd7 {[%clk 0:00:14]} 15. h3 {[%clk 0:01:41]}  Bh5 {[%clk 0:00:13]} 16. Rd2 {[%clk 0:01:29]}  Rad8 {[%clk 0:00:13]} 17. Nb5 {[%clk 0:01:20]}  Bf8 {[%clk 0:00:11]} 18. Nc3 {[%clk 0:00:58]}  a6 {[%clk 0:00:09]} 19. Qb1 {[%clk 0:00:50]}  Bh6 {[%clk 0:00:09]} 20. Rdd1 {[%clk 0:00:45]}  Rxe2 {[%clk 0:00:08]} 21. Nxe2 {[%clk 0:00:44]}  Bxf3 {[%clk 0:00:09]} 22. gxf3 {[%clk 0:00:45]}  Qe7 {[%clk 0:00:09]} 23. Qd3 {[%clk 0:00:42]}  Qg5+ {[%clk 0:00:08]} 24. Kh1 {[%clk 0:00:40]}  Qh4 {[%clk 0:00:09]} 25. Ng1 {[%clk 0:00:40]}  Bf4 {[%clk 0:00:09]} 26. Kg2 {[%clk 0:00:19]}  Bc7 {[%clk 0:00:09]} 27. Rfe1 {[%clk 0:00:20]}  Qg5+ {[%clk 0:00:10]} 28. Kf1 {[%clk 0:00:20]}  Bh2 {[%clk 0:00:08]} 29. Ne2 {[%clk 0:00:15]}  Re8 {[%clk 0:00:08]} 30. f4 {[%clk 0:00:13]}  Qh4 {[%clk 0:00:06]} 31. Qf3 {[%clk 0:00:13]}  Re4 {[%clk 0:00:05]} 32. Kg2 {[%clk 0:00:08]}  Bxf4 {[%clk 0:00:05]} 33. Ng3 {[%clk 0:00:07]}  Qg5 {[%clk 0:00:04]} 34. Rxe4 {[%clk 0:00:06]}  fxe4 {[%clk 0:00:04]} 35. Qg4 {[%clk 0:00:06]}  Qf6 {[%clk 0:00:03]} 36. Ne2 {[%clk 0:00:05]}  Bh6 {[%clk 0:00:03]} 37. Qc8+ {[%clk 0:00:05]}  Kg7 {[%clk 0:00:03]} 38. Qg4 {[%clk 0:00:06]}  Ne7 {[%clk 0:00:02]} 39. h4 {[%clk 0:00:05]}  Nf5 {[%clk 0:00:02]} 40. h5 {[%clk 0:00:06]}  Nh4+ {[%clk 0:00:02]} 41. Kf1 {[%clk 0:00:06]}  Nf3 {[%clk 0:00:03]} 42. Ng1 {[%clk 0:00:06]}  Nh2+ {[%clk 0:00:03]} 43. Ke2 {[%clk 0:00:05]}  Nxg4 {[%clk 0:00:04]} 44. hxg6 {[%clk 0:00:05]}  Qxf2# {[%clk 0:00:03]} 0-1


[Site "https://www.chess.com"]

[Event "Titled Tuesday Blitz June 13 Late 2023"]
[White "Lobanov, Sergei"]
[Black "Carlstedt, Jonathan"]
[WhiteFideId "24183750"]
[BlackFideId "24614386"]
[WhiteElo "2501"]
[BlackElo "2333"]
[Result "1-0"]
[Round "1"]
[TimeControl "180+2"]
[Date "2023.06.13"]
[WhiteClock "0:00:04"]
[BlackClock "0:00:02"]
[Board "74"]

1. d4 {[%clk 0:03:00]}  Nf6 {[%clk 0:02:56]} 2. c4 {[%clk 0:03:01]}  e6 {[%clk 0:02:56]} 3. Nc3 {[%clk 0:03:02]}  Bb4 {[%clk 0:02:55]} 4. e3 {[%clk 0:03:02]}  O-O {[%clk 0:02:53]} 5. Bd3 {[%clk 0:03:02]}  d5 {[%clk 0:02:53]} 6. a3 {[%clk 0:03:01]}  Bxc3+ {[%clk 0:02:50]} 7. bxc3 {[%clk 0:03:02]}  dxc4 {[%clk 0:02:50]} 8. Bxc4 {[%clk 0:03:03]}  c5 {[%clk 0:02:51]} 9. Ne2 {[%clk 0:03:04]}  Qc7 {[%clk 0:02:49]} 10. Bd3 {[%clk 0:03:04]}  Nc6 {[%clk 0:02:45]} 11. O-O {[%clk 0:03:04]}  e5 {[%clk 0:02:44]} 12. Ng3 {[%clk 0:03:04]}  Rd8 {[%clk 0:02:32]} 13. f4 {[%clk 0:03:01]}  exd4 {[%clk 0:02:26]} 14. cxd4 {[%clk 0:03:02]}  cxd4 {[%clk 0:02:26]} 15. e4 {[%clk 0:03:03]}  Ng4 {[%clk 0:02:22]} 16. Qe2 {[%clk 0:02:27]}  Ne3 {[%clk 0:02:17]} 17. Bxe3 {[%clk 0:02:26]}  dxe3 {[%clk 0:02:18]} 18. Qxe3 {[%clk 0:02:27]}  Qb6 {[%clk 0:02:18]} 19. Qxb6 {[%clk 0:02:23]}  axb6 {[%clk 0:02:19]} 20. Bc4 {[%clk 0:02:17]}  Nd4 {[%clk 0:02:08]} 21. Bd5 {[%clk 0:01:59]}  Be6 {[%clk 0:02:04]} 22. Rad1 {[%clk 0:01:05]}  Bxd5 {[%clk 0:01:57]} 23. Rxd4 {[%clk 0:01:04]}  Bc6 {[%clk 0:01:56]} 24. Rxd8+ {[%clk 0:01:01]}  Rxd8 {[%clk 0:01:57]} 25. Rb1 {[%clk 0:00:48]}  b5 {[%clk 0:01:37]} 26. Rb3 {[%clk 0:00:47]}  Rd2 {[%clk 0:01:36]} 27. h4 {[%clk 0:00:47]}  g6 {[%clk 0:01:33]} 28. h5 {[%clk 0:00:48]}  Kg7 {[%clk 0:01:28]} 29. Kh2 {[%clk 0:00:45]}  Kh6 {[%clk 0:01:11]} 30. Rc3 {[%clk 0:00:34]}  f5 {[%clk 0:01:02]} 31. hxg6 {[%clk 0:00:26]}  hxg6 {[%clk 0:01:00]} 32. exf5 {[%clk 0:00:23]}  Rxg2+ {[%clk 0:00:59]} 33. Kh3 {[%clk 0:00:23]}  Rf2 {[%clk 0:00:58]} 34. Kg4 {[%clk 0:00:13]}  Bd7 {[%clk 0:00:38]} 35. Rd3 {[%clk 0:00:13]}  Bc8 {[%clk 0:00:31]} 36. Rd6 {[%clk 0:00:14]}  Kg7 {[%clk 0:00:28]} 37. Rxg6+ {[%clk 0:00:14]}  Kf7 {[%clk 0:00:29]} 38. Rb6 {[%clk 0:00:07]}  Ra2 {[%clk 0:00:28]} 39. Ne4 {[%clk 0:00:08]}  Kf8 {[%clk 0:00:15]} 40. Kg5 {[%clk 0:00:06]}  Rxa3 {[%clk 0:00:13]} 41. Nd6 {[%clk 0:00:07]}  Ra6 {[%clk 0:00:04]} 42. Nxc8 {[%clk 0:00:06]}  Rxb6 {[%clk 0:00:05]} 43. Nxb6 {[%clk 0:00:07]}  b4 {[%clk 0:00:05]} 44. Nc4 {[%clk 0:00:04]}  b3 {[%clk 0:00:06]} 45. f6 {[%clk 0:00:04]}  b5 {[%clk 0:00:06]} 46. Nb2 {[%clk 0:00:05]}  Kf7 {[%clk 0:00:02]} 47. Kf5 {[%clk 0:00:04]} 1-0


[Site "https://www.chess.com"]

[Event "Titled Tuesday Blitz June 13 Late 2023"]
[White "Lalanne, Pablo"]
[Black "Herrera Reyes, Jose Antonio"]
[WhiteFideId "112151"]
[BlackFideId "2274914"]
[WhiteElo "2120"]
[BlackElo "2272"]
[Result "1-0"]
[Round "1"]
[TimeControl "180+2"]
[Date "2023.06.13"]
[WhiteClock "0:00:15"]
[BlackClock "0:00:37"]
[Board "75"]

1. e4 {[%clk 0:02:59]}  c5 {[%clk 0:02:59]} 2. Nf3 {[%clk 0:02:59]}  e6 {[%clk 0:03:00]} 3. d4 {[%clk 0:02:59]}  cxd4 {[%clk 0:03:01]} 4. Nxd4 {[%clk 0:03:00]}  a6 {[%clk 0:03:01]} 5. Bd3 {[%clk 0:02:59]}  Bc5 {[%clk 0:03:01]} 6. Nb3 {[%clk 0:02:59]}  Ba7 {[%clk 0:03:02]} 7. Nc3 {[%clk 0:02:56]}  Ne7 {[%clk 0:03:01]} 8. O-O {[%clk 0:02:55]}  O-O {[%clk 0:03:01]} 9. Kh1 {[%clk 0:02:51]}  b5 {[%clk 0:03:00]} 10. a3 {[%clk 0:02:47]}  Bb7 {[%clk 0:02:59]} 11. f4 {[%clk 0:02:32]}  f5 {[%clk 0:02:58]} 12. Qe2 {[%clk 0:02:21]}  Nbc6 {[%clk 0:02:56]} 13. Be3 {[%clk 0:02:20]}  fxe4 {[%clk 0:02:51]} 14. Nxe4 {[%clk 0:02:08]}  Bxe3 {[%clk 0:02:47]} 15. Qxe3 {[%clk 0:02:08]}  Nf5 {[%clk 0:02:47]} 16. Qh3 {[%clk 0:02:05]}  Nce7 {[%clk 0:02:37]} 17. Rad1 {[%clk 0:01:58]}  Bc6 {[%clk 0:02:34]} 18. Ng5 {[%clk 0:01:52]}  h6 {[%clk 0:02:23]} 19. Nxe6 {[%clk 0:01:47]}  dxe6 {[%clk 0:02:02]} 20. Bxf5 {[%clk 0:01:46]}  Nxf5 {[%clk 0:01:54]} 21. Rxd8 {[%clk 0:01:45]}  Raxd8 {[%clk 0:01:54]} 22. Qc3 {[%clk 0:01:29]}  Rc8 {[%clk 0:01:51]} 23. Qe1 {[%clk 0:01:27]}  Bd5 {[%clk 0:01:50]} 24. Qf2 {[%clk 0:01:19]}  Rfd8 {[%clk 0:01:46]} 25. h3 {[%clk 0:01:15]}  Kh7 {[%clk 0:01:43]} 26. Kh2 {[%clk 0:01:15]}  Rc4 {[%clk 0:01:40]} 27. c3 {[%clk 0:01:12]}  Rc7 {[%clk 0:01:34]} 28. Nd4 {[%clk 0:01:03]}  Nd6 {[%clk 0:01:29]} 29. Re1 {[%clk 0:00:58]}  Ne4 {[%clk 0:01:24]} 30. Qh4 {[%clk 0:00:54]}  Rf8 {[%clk 0:01:17]} 31. Nxe6 {[%clk 0:00:47]}  Bxe6 {[%clk 0:01:18]} 32. Rxe4 {[%clk 0:00:47]}  Bf5 {[%clk 0:01:18]} 33. Re7 {[%clk 0:00:45]}  Rc6 {[%clk 0:01:18]} 34. Qg3 {[%clk 0:00:42]}  Rg6 {[%clk 0:01:18]} 35. Qe3 {[%clk 0:00:40]}  Rd8 {[%clk 0:01:16]} 36. g4 {[%clk 0:00:34]}  Bb1 {[%clk 0:01:16]} 37. f5 {[%clk 0:00:33]}  Rgd6 {[%clk 0:01:16]} 38. Qe5 {[%clk 0:00:22]}  Rd2+ {[%clk 0:01:16]} 39. Kg3 {[%clk 0:00:22]}  Rg8 {[%clk 0:01:14]} 40. f6 {[%clk 0:00:20]}  Rd3+ {[%clk 0:01:14]} 41. Kh4 {[%clk 0:00:17]}  Rdd8 {[%clk 0:01:05]} 42. Rxg7+ {[%clk 0:00:14]}  Rxg7 {[%clk 0:01:05]} 43. fxg7 {[%clk 0:00:14]}  Rg8 {[%clk 0:01:05]} 44. Qf6 {[%clk 0:00:14]}  Rxg7 {[%clk 0:01:05]} 45. Qxa6 {[%clk 0:00:14]}  Bd3 {[%clk 0:01:06]} 46. Qd6 {[%clk 0:00:13]}  Bc4 {[%clk 0:01:06]} 47. Qd4 {[%clk 0:00:12]}  Rf7 {[%clk 0:01:06]} 48. a4 {[%clk 0:00:12]}  Bf1 {[%clk 0:00:56]} 49. axb5 {[%clk 0:00:11]}  Bxb5 {[%clk 0:00:57]} 50. Qd5 {[%clk 0:00:10]}  Be8 {[%clk 0:00:51]} 51. Qe4+ {[%clk 0:00:09]}  Kg7 {[%clk 0:00:51]} 52. Qxe8 {[%clk 0:00:10]}  Rb7 {[%clk 0:00:52]} 53. Qe5+ {[%clk 0:00:09]}  Kf8 {[%clk 0:00:52]} 54. Qc5+ {[%clk 0:00:09]}  Ke8 {[%clk 0:00:51]} 55. Qc6+ {[%clk 0:00:07]}  Rd7 {[%clk 0:00:52]} 56. Kh5 {[%clk 0:00:07]}  Ke7 {[%clk 0:00:53]} 57. Qxd7+ {[%clk 0:00:07]}  Kxd7 {[%clk 0:00:53]} 58. Kxh6 {[%clk 0:00:08]}  Ke6 {[%clk 0:00:53]} 59. g5 {[%clk 0:00:09]}  Kf7 {[%clk 0:00:54]} 60. h4 {[%clk 0:00:09]}  Kg8 {[%clk 0:00:55]} 61. h5 {[%clk 0:00:10]}  Kh8 {[%clk 0:00:56]} 62. g6 {[%clk 0:00:11]}  Kg8 {[%clk 0:00:56]} 63. Kg5 {[%clk 0:00:12]}  Kg7 {[%clk 0:00:56]} 64. h6+ {[%clk 0:00:13]}  Kh8 {[%clk 0:00:57]} 65. Kf6 {[%clk 0:00:13]}  Kg8 {[%clk 0:00:58]} 66. h7+ {[%clk 0:00:14]}  Kh8 {[%clk 0:00:58]} 67. Ke6 {[%clk 0:00:13]}  Kg7 {[%clk 0:00:58]} 68. c4 {[%clk 0:00:14]}  Kh8 {[%clk 0:00:37]} 69. c5 {[%clk 0:00:15]} 1-0


[Site "https://www.chess.com"]

[Event "Titled Tuesday Blitz June 13 Late 2023"]
[White "Riehle, Marco"]
[Black "Gasparyan, David"]
[WhiteFideId "12904392"]
[BlackFideId "13311980"]
[WhiteElo "2462"]
[BlackElo "2421"]
[Result "0-1"]
[Round "1"]
[TimeControl "180+2"]
[Date "2023.06.13"]
[WhiteClock "0:00:16"]
[BlackClock "0:00:27"]
[Board "78"]

1. e4 {[%clk 0:02:58]}  c5 {[%clk 0:02:57]} 2. a3 {[%clk 0:02:58]}  e6 {[%clk 0:02:51]} 3. b4 {[%clk 0:02:57]}  cxb4 {[%clk 0:02:46]} 4. axb4 {[%clk 0:02:58]}  Nf6 {[%clk 0:02:40]} 5. e5 {[%clk 0:02:58]}  Nd5 {[%clk 0:02:40]} 6. b5 {[%clk 0:02:57]}  d6 {[%clk 0:02:37]} 7. c4 {[%clk 0:02:56]}  Nc7 {[%clk 0:02:36]} 8. exd6 {[%clk 0:02:56]}  Bxd6 {[%clk 0:02:34]} 9. Nf3 {[%clk 0:02:56]}  O-O {[%clk 0:02:34]} 10. d4 {[%clk 0:02:56]}  Nd7 {[%clk 0:02:19]} 11. Bb2 {[%clk 0:02:49]}  b6 {[%clk 0:02:18]} 12. Bd3 {[%clk 0:02:46]}  Bb7 {[%clk 0:02:17]} 13. O-O {[%clk 0:02:45]}  Nf6 {[%clk 0:02:15]} 14. Nbd2 {[%clk 0:02:41]}  a6 {[%clk 0:02:13]} 15. bxa6 {[%clk 0:02:34]}  Nxa6 {[%clk 0:02:08]} 16. Ne5 {[%clk 0:02:15]}  Nb4 {[%clk 0:02:02]} 17. Rxa8 {[%clk 0:02:15]}  Qxa8 {[%clk 0:02:02]} 18. Ndf3 {[%clk 0:02:02]}  Nxd3 {[%clk 0:02:00]} 19. Qxd3 {[%clk 0:01:58]}  Qa2 {[%clk 0:01:49]} 20. Qb1 {[%clk 0:01:46]}  Ra8 {[%clk 0:01:36]} 21. Bc3 {[%clk 0:01:32]}  Qxb1 {[%clk 0:01:20]} 22. Rxb1 {[%clk 0:01:31]}  Ra3 {[%clk 0:01:21]} 23. Be1 {[%clk 0:01:23]}  Bc7 {[%clk 0:01:18]} 24. h3 {[%clk 0:01:09]}  Be4 {[%clk 0:01:15]} 25. Rc1 {[%clk 0:01:05]}  h6 {[%clk 0:01:08]} 26. c5 {[%clk 0:01:04]}  bxc5 {[%clk 0:00:51]} 27. Rxc5 {[%clk 0:01:03]}  Bxe5 {[%clk 0:00:51]} 28. dxe5 {[%clk 0:00:55]}  Nd5 {[%clk 0:00:46]} 29. Rc8+ {[%clk 0:00:29]}  Kh7 {[%clk 0:00:46]} 30. Rf8 {[%clk 0:00:29]}  Ra1 {[%clk 0:00:37]} 31. Kf1 {[%clk 0:00:29]}  Bd3+ {[%clk 0:00:37]} 32. Kg1 {[%clk 0:00:29]}  Be2 {[%clk 0:00:37]} 33. Rxf7 {[%clk 0:00:26]}  Bxf3 {[%clk 0:00:37]} 34. Rxf3 {[%clk 0:00:26]}  Rxe1+ {[%clk 0:00:38]} 35. Kh2 {[%clk 0:00:27]}  Rxe5 {[%clk 0:00:39]} 36. Ra3 {[%clk 0:00:27]}  Re2 {[%clk 0:00:37]} 37. Kg3 {[%clk 0:00:27]}  Nf6 {[%clk 0:00:36]} 38. f3 {[%clk 0:00:26]}  Nh5+ {[%clk 0:00:34]} 39. Kh4 {[%clk 0:00:25]}  Kg6 {[%clk 0:00:33]} 40. g4 {[%clk 0:00:25]}  Nf4 {[%clk 0:00:32]} 41. Kg3 {[%clk 0:00:25]}  e5 {[%clk 0:00:32]} 42. Ra6+ {[%clk 0:00:25]}  Kh7 {[%clk 0:00:32]} 43. Ra7 {[%clk 0:00:23]}  Kg8 {[%clk 0:00:32]} 44. g5 {[%clk 0:00:15]}  Rg2+ {[%clk 0:00:26]} 45. Kh4 {[%clk 0:00:16]}  hxg5# {[%clk 0:00:27]} 0-1


[Site "https://www.chess.com"]